bitfinex/quotes_ETHUSD_20240618
["timestamp","ask_amount","ask_price","bid_price","bid_amount"]
[1718701273610,3.0,3452.3,3452.0,0.859]
[1718701273793,3.0,3452.5,3452.2,0.859]
[1718701273990,0.50142668,3452.6,3452.2,0.859]
[1718701273991,3.50142668,3452.6,3452.2,0.859]
[1718701274211,3.50142668,3452.9,3452.2,0.859]
[1718701274413,2.56744982,3452.8,3452.2,0.859]
[1718701274598,3.0,3452.7,3452.2,0.859]
[1718701275113,3.0,3452.7,3452.3,2.4489]
[1718701275933,0.50142668,3452.9,3452.3,2.4489]
[1718701276122,7.93142668,3453.0,3452.3,2.4489]
[1718701277507,3.0,3452.9,3452.3,2.4489]
[1718701277721,3.50142668,3452.9,3452.3,2.4489]
[1718701278312,3.0,3452.9,3452.3,2.4489]
[1718701278934,3.50122708,3452.9,3452.3,2.4489]
[1718701284142,6.69502708,3452.9,3452.1,2.2618]
[1718701284345,1.41250271,3452.8,3452.1,2.2618]
[1718701286048,6.69502708,3452.9,3452.1,2.2618]
[1718701287949,4.36022708,3452.9,3452.1,2.2618]
[1718701288327,3.50122708,3452.9,3452.3,0.859]
[1718701288545,3.0,3452.9,3452.7,0.859]
[1718701288721,7.43,3453.0,3452.8,2.5807]
[1718701289721,3.0,3452.9,3452.8,2.268]
[1718701290157,7.43,3453.0,3452.8,2.268]
[1718701292951,3.0,3453.3,3452.8,2.268]
[1718701293268,3.0,3453.2,3452.8,2.268]
[1718701293626,3.50114215,3453.5,3452.8,2.268]
[1718701295159,2.2803,3453.4,3452.6,2.3955]
[1718701295525,5.2803,3453.4,3452.6,2.3955]
[1718701296336,6.71757421,3453.4,3452.6,2.3955]
[1718701299078,2.4512,3453.2,3452.2,3.2935]
[1718701299278,0.859,3453.1,3452.2,3.2935]
[1718701299446,3.859,3453.1,3452.2,3.2935]
[1718701299783,3.859,3453.1,3452.2,3.912537]
[1718701301150,3.859,3453.1,3452.2,2.4345]
[1718701301484,3.859,3453.1,3452.2,3.2935]
[1718701301975,2.3633,3453.0,3452.2,0.859]
[1718701302355,5.3633,3453.0,3452.2,0.859]
[1718701303681,5.3633,3453.0,3452.0,0.859]
[1718701303978,0.62223,3452.9,3452.0,0.859]
[1718701304161,3.62223,3452.9,3452.0,0.859]
[1718701304347,3.0,3452.9,3452.0,0.859]
[1718701304544,5.3633,3453.0,3452.0,0.859]
[1718701304748,5.3633,3453.0,3452.2,0.859]
[1718701313493,5.3633,3453.0,3451.8,5.19683]
[1718701313494,0.859,3452.8,3451.8,2.2998]
[1718701313800,0.61199,3452.7,3451.9,0.859]
[1718701314093,3.859,3452.8,3451.9,0.859]
[1718701317776,2.4727,3452.7,3451.8,2.2998]
[1718701317975,5.4727,3452.7,3451.9,0.859]
[1718701318369,6.4373073,3452.7,3451.9,0.859]
[1718701319192,6.4373073,3452.7,3451.8,2.2998]
[1718701319397,6.4373073,3452.7,3452.0,0.859]
[1718701323477,0.859,3452.5,3451.4,2.3435]
[1718701323684,0.859,3452.5,3451.5,0.859]
[1718701323685,2.4557,3452.3,3451.5,0.859]
[1718701325506,2.4557,3452.3,3451.5,3.3402]
[1718701326807,2.4557,3452.3,3451.5,0.859]
[1718701328274,2.4557,3452.3,3451.7,0.859]
[1718701330685,3.0,3452.4,3451.5,2.4759]
[1718701330915,3.0,3452.4,3452.0,0.859]
[1718701331087,0.50125727,3452.5,3452.0,0.859]
[1718701331088,3.50125727,3452.5,3452.0,0.859]
[1718701331796,3.47325727,3452.5,3452.0,0.859]
[1718701333610,3.32925727,3452.5,3452.0,0.859]
[1718701334678,0.32925727,3452.5,3452.0,0.859]
[1718701334884,3.0,3452.6,3452.0,0.859]
[1718701338185,3.0,3452.6,3451.8,0.859]
[1718701342016,3.0,3452.6,3451.8,1.19536843]
[1718701350141,2.383,3452.5,3451.8,0.859]
[1718701350298,2.383,3452.5,3450.2,12.22146616]
[1718701350299,0.859,3452.4,3451.4,2.3137]
[1718701350504,0.859,3452.4,3450.6,2.89804]
[1718701350505,2.383,3452.3,3450.8,2.3137]
[1718701350840,2.383,3452.3,3451.3,0.859]
[1718701351057,2.3142,3452.2,3451.3,0.859]
[1718701351261,5.3142,3452.2,3451.3,0.859]
[1718701352434,5.3142,3452.2,3451.3,3.2442]
[1718701352625,5.3142,3452.2,3451.4,0.32442]
[1718701353351,5.3142,3452.2,3451.5,0.859]
[1718701360772,5.3142,3452.2,3451.7,0.859]
[1718701363058,4.9712,3452.2,3451.7,0.859]
[1718701363273,3.0,3452.2,3451.9,0.859]
[1718701363473,3.50134111,3452.3,3451.9,0.859]
[1718701364750,3.0,3452.2,3451.9,0.859]
[1718701364952,0.50134111,3452.3,3451.9,0.859]
[1718701365475,3.0,3452.7,3451.9,0.859]
[1718701366263,2.3052,3452.6,3451.9,0.859]
[1718701367674,3.1642,3452.6,3451.4,0.32442]
[1718701367878,2.4185,3452.4,3451.6,0.859]
[1718701370181,0.859,3452.4,3450.6,2.4337]
[1718701370484,0.859,3451.6,3450.6,3.2927]
[1718701370643,0.32656,3451.5,3450.6,3.2927]
[1718701370849,0.859,3451.6,3450.6,3.2927]
[1718701371047,3.859,3451.6,3450.6,3.2927]
[1718701373878,2.2944,3451.3,3449.9,5.16243]
[1718701374072,0.859,3451.2,3450.3,0.859]
[1718701374273,3.859,3451.2,3450.3,0.859]
[1718701375880,3.0,3451.2,3450.4,2.452]
[1718701376051,3.0,3451.2,3450.5,1.1901]
[1718701378755,3.50146865,3451.2,3450.5,1.1901]
[1718701379174,2.493,3451.1,3450.3,0.859]
[1718701379552,5.493,3451.1,3450.3,0.859]
[1718701381281,5.493,3451.1,3450.1,2.4866]
[1718701381482,0.859,3451.0,3450.1,3.3456]
[1718701381663,3.859,3451.0,3450.1,3.3456]
[1718701382080,3.859,3451.0,3450.1,3.68016]
[1718701384484,3.859,3451.0,3450.1,2.82116]
[1718701384654,3.859,3451.0,3450.2,0.859]
[1718701385575,3.0,3451.0,3450.2,0.859]
[1718701385786,2.493,3451.1,3450.4,0.859]
[1718701385787,5.493,3451.1,3450.4,0.859]
[1718701386090,5.493,3451.1,3450.6,0.859]
[1718701389607,3.0,3451.1,3450.6,0.859]
[1718701390093,3.50148159,3451.2,3450.6,0.859]
[1718701391671,3.50148159,3451.2,3450.4,0.859]
[1718701393397,3.50148159,3451.2,3450.4,1.227016]
[1718701395098,3.50148159,3451.2,3450.4,0.368016]
[1718701399373,2.2762,3451.1,3450.3,0.859]
[1718701399570,5.2762,3451.1,3450.3,0.859]
[1718701405195,5.2762,3451.1,3450.1,2.82116]
[1718701405196,5.2762,3451.1,3450.2,0.859]
[1718701412732,5.2762,3451.1,3450.2,0.859]
[1718701415535,5.2762,3451.1,3450.4,0.859]
[1718701418950,3.0,3451.1,3450.4,0.859]
[1718701419253,2.4768,3451.0,3450.4,0.859]
[1718701419545,5.4768,3451.0,3450.4,0.859]
[1718701420347,2.4768,3451.0,3450.4,0.859]
[1718701421212,2.4768,3451.0,3450.2,0.859]
[1718701425833,2.4768,3451.0,3450.1,0.33456]
[1718701426039,2.3533,3450.9,3450.2,0.859]
[1718701426242,2.3533,3450.8,3450.2,0.859]
[1718701429460,2.3533,3450.8,3450.0,0.859]
[1718701433953,2.3533,3450.8,3449.5,2.2917]
[1718701434158,2.65559452,3450.8,3449.9,0.859]
[1718701434351,2.319,3450.6,3449.9,0.859]
[1718701434967,3.178,3450.6,3449.5,2.2917]
[1718701435164,2.3757,3450.4,3449.6,0.859]
[1718701438273,2.3757,3450.4,3449.8,0.859]
[1718701438777,2.3757,3450.4,3449.6,0.32198]
[1718701438954,2.3757,3450.4,3449.9,0.859]
[1718701441462,2.3757,3450.4,3449.7,0.859]
[1718701445582,2.3085,3450.2,3449.3,2.3608]
[1718701445880,2.3085,3450.2,3449.4,0.859]
[1718701445881,5.3085,3450.2,3449.4,0.859]
[1718701446653,2.3085,3450.2,3449.4,0.859]
[1718701448192,2.3085,3450.2,3449.6,0.859]
[1718701451384,2.3085,3450.2,3449.8,0.859]
[1718701451598,2.3085,3450.2,3449.0,2.3254]
[1718701451884,2.3085,3450.2,3449.7,0.859]
[1718701455107,2.3085,3450.2,3449.9,0.859]
[1718701457757,2.3085,3450.2,3449.1,0.812441]
[1718701457965,2.3085,3450.2,3449.6,0.859]
[1718701458185,2.3085,3450.2,3449.5,0.859]
[1718701460294,2.3085,3450.2,3448.9,2.3556]
[1718701460604,2.3085,3450.2,3449.5,0.859]
[1718701461992,2.3085,3450.2,3448.9,2.31105]
[1718701462193,2.3085,3450.2,3449.5,0.859]
[1718701463499,2.3085,3450.2,3449.7,0.859]
[1718701467877,2.3085,3450.2,3448.9,2.31105]
[1718701468091,2.60993289,3450.2,3449.7,0.859]
[1718701468602,2.3475,3450.0,3449.7,0.859]
[1718701468901,2.91239329,3450.0,3449.7,0.859]
[1718701469205,3.0,3449.9,3449.6,0.859]
[1718701469816,2.3475,3450.0,3449.6,0.859]
[1718701473573,2.3475,3450.0,3449.8,0.859]
[1718701478311,2.3475,3450.0,3449.6,0.859]
[1718701479513,2.2475,3450.0,3449.6,0.859]
[1718701481011,2.2475,3450.0,3449.8,0.859]
[1718701486625,3.0,3450.1,3449.8,0.859]
[1718701488190,3.87615839,3450.1,3449.8,0.859]
[1718701491528,3.53315839,3450.1,3449.8,0.859]
[1718701494245,2.657,3450.1,3449.8,0.859]
[1718701495949,0.30143289,3450.2,3450.1,5.38046]
[1718701496145,7.43,3451.1,3450.1,5.38046]
[1718701496146,0.50162419,3451.0,3450.1,2.482]
[1718701496348,7.43,3451.4,3450.9,0.859]
[1718701496556,0.50162419,3451.5,3451.1,0.859]
[1718701497217,2.4271,3451.6,3451.1,0.859]
[1718701498241,5.4271,3451.6,3451.1,0.859]
[1718701500550,3.0,3451.6,3450.6,2.2722]
[1718701500860,0.50143107,3451.7,3451.5,0.859]
[1718701500861,0.50137798,3451.7,3451.5,0.859]
[1718701501014,7.9313433,3452.1,3451.5,0.859]
[1718701501247,0.5013433,3452.1,3452.0,0.859]
[1718701501446,7.43,3452.5,3452.0,0.859]
[1718701501447,7.9313433,3452.5,3452.0,0.859]
[1718701501687,1.09313433,3452.4,3452.0,0.859]
[1718701502184,1.09313433,3452.4,3451.3,2.2722]
[1718701502360,1.09313433,3452.4,3451.6,0.859]
[1718701502549,1.44937611,3452.4,3451.6,0.859]
[1718701503258,4.44937611,3452.4,3451.6,0.859]
[1718701503577,1.42261327,3452.3,3451.6,0.859]
[1718701503781,4.42261327,3452.3,3451.6,0.859]
[1718701504007,5.3554,3452.2,3450.5,2.293]
[1718701504151,5.3554,3452.2,3451.3,0.859]
[1718701504152,6.57285952,3452.2,3451.3,0.859]
[1718701504490,4.09313433,3452.1,3451.3,0.859]
[1718701504659,4.59447763,3452.1,3451.3,0.859]
[1718701506049,4.09313433,3452.1,3451.3,0.859]
[1718701506286,4.09313433,3452.1,3451.5,0.859]
[1718701506881,4.09313433,3452.1,3450.5,2.293]
[1718701507086,2.3868,3451.9,3451.1,0.859]
[1718701507596,5.3868,3451.9,3451.1,0.859]
[1718701508860,0.859,3451.6,3450.7,0.859]
[1718701510958,0.859,3451.4,3450.5,3.152]
[1718701511357,0.859,3451.4,3450.6,0.3152]
[1718701512795,0.859,3451.6,3450.6,0.3152]
[1718701513092,0.859,3451.6,3450.7,0.859]
[1718701521175,2.4772,3451.5,3450.7,0.859]
[1718701521975,0.859,3451.4,3450.2,0.3341]
[1718701522184,2.3857,3451.3,3450.2,0.3341]
[1718701522391,0.859,3451.2,3450.1,2.4675]
[1718701522593,3.859,3451.2,3450.3,0.859]
[1718701522910,4.15993843,3451.2,3450.3,0.859]
[1718701523908,2.426,3451.1,3450.2,0.859]
[1718701524072,6.49729597,3451.1,3450.2,0.859]
[1718701527437,6.49729597,3451.1,3450.4,0.859]
[1718701539111,6.49729597,3451.1,3450.7,0.859]
[1718701544709,6.49729597,3451.1,3449.8,2.3535]
[1718701544956,2.2937,3451.0,3449.9,0.815115]
[1718701545138,2.2937,3450.9,3450.2,0.859]
[1718701545306,5.2937,3450.9,3450.2,0.859]
[1718701545506,5.2937,3450.9,3449.3,1.16109]
[1718701545507,2.2768,3450.8,3449.4,2.278]
[1718701545701,2.2768,3450.7,3450.1,0.859]
[1718701545929,1.04042925,3450.6,3450.1,0.859]
[1718701546308,4.04042925,3450.6,3449.4,5.17703]
[1718701546503,3.0,3450.6,3450.1,0.859]
[1718701546742,5.2768,3450.7,3450.1,0.859]
[1718701547328,2.2768,3450.7,3450.1,0.859]
[1718701548836,2.2768,3450.7,3449.4,2.278]
[1718701549037,2.2768,3450.7,3450.1,0.859]
[1718701549245,3.15328417,3450.7,3450.1,0.859]
[1718701549438,3.0,3450.6,3450.1,0.859]
[1718701550628,2.484,3450.5,3449.4,2.278]
[1718701550829,2.484,3450.5,3450.0,0.859]
[1718701551611,2.141,3450.5,3450.0,0.859]
[1718701552054,2.70896746,3450.5,3449.4,2.278]
[1718701552267,5.4284223,3450.4,3449.6,0.859]
[1718701552556,2.1274925,3450.3,3449.6,0.859]
[1718701553310,5.4284223,3450.4,3449.6,0.859]
[1718701553511,2.8631864,3450.3,3448.9,2.3955]
[1718701553736,3.0,3450.2,3449.5,0.859]
[1718701554255,2.1274925,3450.3,3449.5,0.859]
[1718701554625,2.329,3450.2,3449.5,0.859]
[1718701554952,5.329,3450.2,3449.5,0.859]
[1718701556314,2.329,3450.2,3449.5,0.859]
[1718701557445,2.329,3450.2,3449.7,0.859]
[1718701560260,3.0,3450.3,3449.7,0.859]
[1718701560553,0.3009298,3450.4,3449.9,0.859]
[1718701561556,1.37222577,3450.4,3449.7,0.859]
[1718701561751,0.3009298,3450.4,3449.7,0.859]
[1718701575465,2.475,3450.3,3448.8,2.3739]
[1718701575660,5.475,3450.3,3449.5,0.859]
[1718701575868,6.401405,3450.3,3449.5,0.859]
[1718701576063,5.475,3450.3,3449.6,2.3171]
[1718701576297,5.475,3450.3,3449.7,0.859]
[1718701576878,3.0,3450.3,3449.7,0.859]
[1718701577064,0.3009298,3450.4,3449.7,0.859]
[1718701579269,0.3009298,3450.4,3449.6,2.3171]
[1718701580052,2.4284223,3450.4,3449.6,2.3171]
[1718701580251,2.4398,3450.3,3449.5,0.859]
[1718701580557,8.06891228,3450.3,3449.5,0.859]
[1718701581344,0.50161978,3450.2,3449.5,0.859]
[1718701581541,3.50161978,3450.2,3449.5,0.859]
[1718701582253,5.62911228,3450.2,3449.5,0.859]
[1718701584487,5.62911228,3450.2,3449.3,3.2488]
[1718701584688,5.62911228,3450.2,3449.4,0.32488]
[1718701586910,5.62889054,3450.2,3449.4,0.32488]
[1718701587056,5.12727076,3450.2,3449.4,0.32488]
[1718701588269,2.12727076,3450.1,3449.4,0.32488]
[1718701588460,5.12727076,3450.1,3449.4,0.32488]
[1718701589156,3.0,3450.0,3449.4,0.32488]
[1718701589358,2.12727076,3450.1,3449.4,0.32488]
[1718701590101,2.12727076,3450.0,3449.4,0.32488]
[1718701590758,2.12727076,3450.0,3449.5,0.859]
[1718701590984,2.12727076,3450.0,3449.4,0.32488]
[1718701591185,2.12727076,3450.0,3449.5,0.859]
[1718701591348,2.12727076,3450.0,3449.5,1.216368]
[1718701591549,2.42810885,3450.1,3449.5,1.216368]
[1718701592255,2.42810885,3450.1,3449.7,0.859]
[1718701592449,5.12727076,3450.2,3449.7,0.859]
[1718701592654,3.0,3450.1,3449.7,0.859]
[1718701592874,2.12727076,3450.2,3449.7,0.859]
[1718701593070,2.12727076,3450.1,3449.7,0.859]
[1718701593984,2.12727076,3450.2,3449.7,0.859]
[1718701594283,2.12727076,3450.1,3449.7,0.859]
[1718701594852,2.13077305,3450.1,3449.7,0.859]
[1718701595052,2.13077305,3450.2,3449.7,0.859]
[1718701595282,5.3157,3450.3,3449.7,0.859]
[1718701595283,2.13077305,3450.1,3449.7,0.859]
[1718701595489,2.13077305,3449.9,3448.7,2.2745]
[1718701595688,2.13077305,3449.8,3449.4,0.859]
[1718701595980,2.3194,3449.7,3449.0,2.432]
[1718701596182,5.3194,3449.7,3449.0,2.432]
[1718701596384,2.13077305,3449.5,3449.0,2.432]
[1718701596591,2.13077305,3449.4,3448.3,2.28]
[1718701596757,2.13077305,3449.3,3448.9,0.859]
[1718701598085,2.13077305,3449.4,3448.9,0.859]
[1718701598285,2.63238557,3449.5,3448.9,0.859]
[1718701598487,2.63238557,3449.5,3449.1,0.859]
[1718701599155,2.63238557,3449.5,3449.3,0.859]
[1718701599575,0.50161252,3449.5,3449.3,0.859]
[1718701603184,3.0,3449.7,3449.3,0.859]
[1718701603391,5.13077305,3449.8,3449.3,0.859]
[1718701603591,5.13077305,3449.8,3449.5,0.859]
[1718701603592,3.0,3449.8,3449.5,0.859]
[1718701604292,5.13077305,3449.8,3449.5,0.859]
[1718701604668,3.0,3449.8,3449.5,0.859]
[1718701606491,5.13077305,3449.8,3449.5,0.859]
[1718701606963,5.13077305,3449.8,3449.4,2.4821]
[1718701607774,3.0,3449.8,3449.4,2.4821]
[1718701608192,5.13077305,3449.8,3449.4,2.4821]
[1718701608376,5.13045602,3449.8,3449.4,2.4821]
[1718701608598,5.13045602,3449.8,3449.3,0.859]
[1718701611076,3.0,3449.7,3449.3,0.859]
[1718701611274,2.13045602,3449.8,3449.3,0.859]
[1718701612906,2.13050568,3449.8,3449.3,0.859]
[1718701613210,2.13050568,3449.8,3449.2,0.859]
[1718701613211,2.13050568,3449.6,3449.2,0.859]
[1718701613399,5.13050568,3449.7,3449.2,0.859]
[1718701613714,5.13050568,3449.6,3449.2,0.859]
[1718701614210,2.13050568,3449.6,3449.2,0.859]
[1718701614512,3.0,3449.7,3449.2,0.859]
[1718701614686,2.13058396,3449.6,3449.2,0.859]
[1718701615781,5.13058396,3449.7,3449.2,0.859]
[1718701616874,2.13058396,3449.6,3449.2,0.859]
[1718701617278,5.13058396,3449.7,3449.2,0.859]
[1718701619420,2.13058396,3449.6,3449.2,0.859]
[1718701619999,2.13051811,3449.6,3449.2,0.859]
[1718701620215,5.13051811,3449.7,3449.2,0.859]
[1718701620610,3.0,3449.6,3449.2,0.859]
[1718701620811,2.13051811,3449.7,3449.2,0.859]
[1718701624228,5.13051811,3449.8,3449.2,0.859]
[1718701624409,2.13051811,3449.7,3449.2,0.859]
[1718701627446,2.13051811,3449.7,3448.9,2.4415]
[1718701627447,2.13051811,3449.5,3448.9,2.4415]
[1718701627648,2.13051811,3449.4,3448.9,2.4415]
[1718701627850,2.13051811,3449.4,3448.8,0.859]
[1718701628154,2.13051811,3449.4,3448.7,2.4415]
[1718701628454,2.13126276,3449.3,3448.8,0.859]
[1718701630133,2.13126276,3449.2,3447.9,2.2816]
[1718701630451,2.13126276,3449.2,3448.5,3.1406]
[1718701630653,5.13126276,3449.3,3448.5,3.1406]
[1718701630858,2.13126276,3449.2,3448.5,3.1406]
[1718701631059,5.63301318,3449.3,3448.5,3.1406]
[1718701632525,5.63301318,3449.3,3448.6,0.859]
[1718701633069,2.13126276,3449.2,3448.6,0.859]
[1718701633884,7.19090273,3449.3,3448.6,0.859]
[1718701638293,7.19090273,3449.3,3448.5,2.2816]
[1718701638593,2.13126276,3449.2,3448.6,0.859]
[1718701640068,2.13126276,3449.2,3448.5,2.2816]
[1718701640281,2.13126276,3449.2,3448.7,0.859]
[1718701643944,3.0,3449.1,3448.6,0.859]
[1718701646514,5.4951,3449.2,3448.6,0.859]
[1718701646700,7.62446321,3449.2,3448.6,0.859]
[1718701648112,5.4951,3449.2,3448.6,0.859]
[1718701648611,7.62446321,3449.2,3448.6,0.859]
[1718701649432,5.4951,3449.2,3448.6,0.859]
[1718701650038,7.62446321,3449.2,3448.6,0.859]
[1718701650235,5.4951,3449.2,3448.6,0.859]
[1718701651042,7.16669602,3449.2,3448.6,0.859]
[1718701651648,9.29605923,3449.2,3448.6,0.859]
[1718701654659,9.29542748,3449.2,3448.6,0.859]
[1718701654862,7.16669602,3449.2,3448.6,0.859]
[1718701655048,9.29542748,3449.2,3448.6,0.859]
[1718701655249,7.16669602,3449.2,3448.6,0.859]
[1718701655449,9.29542748,3449.2,3448.6,0.859]
[1718701657887,8.95242748,3449.2,3448.6,0.859]
[1718701658349,0.84415158,3449.1,3448.6,0.859]
[1718701658549,3.0,3449.1,3448.6,0.859]
[1718701660376,5.12873146,3449.2,3448.6,0.859]
[1718701661978,2.12873146,3448.9,3447.5,2.255]
[1718701662193,2.12873146,3448.8,3448.1,2.255]
[1718701662403,2.12873146,3448.7,3448.2,0.3114]
[1718701662582,2.12873146,3448.7,3448.1,2.255]
[1718701663103,0.30086057,3448.8,3448.2,0.859]
[1718701663104,2.42959203,3448.8,3448.2,0.859]
[1718701666106,2.43002385,3448.8,3448.2,0.859]
[1718701666533,2.12916328,3448.7,3448.2,0.859]
[1718701666800,2.43002385,3448.8,3448.2,0.859]
[1718701667101,2.12916328,3448.7,3448.2,0.859]
[1718701667274,2.12916328,3448.7,3447.4,2.437]
[1718701667471,2.12916328,3448.7,3448.2,0.859]
[1718701667893,5.12916328,3448.7,3448.2,0.859]
[1718701669009,5.12916328,3448.7,3448.1,2.437]
[1718701669186,5.12916328,3448.7,3448.1,3.296]
[1718701670094,2.12916328,3448.6,3448.1,3.296]
[1718701670317,5.12916328,3448.6,3448.1,3.296]
[1718701670806,2.12916328,3448.6,3448.1,3.296]
[1718701677219,2.12962382,3448.6,3448.1,3.296]
[1718701678020,2.12960341,3448.6,3448.1,3.296]
[1718701678223,3.21721435,3448.6,3448.1,3.296]
[1718701678422,3.21721435,3448.6,3446.7,3.35591247]
[1718701678423,2.12960341,3448.2,3446.7,3.35591247]
[1718701678600,2.12987567,3448.0,3447.3,0.859]
[1718701678923,3.0,3448.2,3447.3,0.859]
[1718701678924,2.12987567,3447.9,3447.3,0.859]
[1718701679230,0.30062083,3447.9,3447.3,0.859]
[1718701679595,0.30062083,3447.9,3447.5,0.859]
[1718701681489,0.30062083,3447.9,3447.6,2.3241]
[1718701681827,0.30062083,3447.9,3447.5,0.859]
[1718701684619,0.30062083,3447.9,3447.4,3.1831]
[1718701685729,2.4328,3447.8,3446.7,3.502939]
[1718701686032,5.4328,3447.8,3447.3,0.859]
[1718701686229,2.4328,3447.8,3447.1,2.3409]
[1718701686437,5.4328,3447.8,3447.3,0.859]
[1718701687041,6.21912965,3447.8,3447.3,0.859]
[1718701692357,2.268,3447.7,3446.5,2.3979]
[1718701692520,3.84895472,3447.7,3446.5,2.3979]
[1718701692720,6.48324845,3447.7,3446.8,0.859]
[1718701693366,6.14024845,3447.7,3446.8,0.859]
[1718701693514,0.8570745,3447.6,3446.8,0.859]
[1718701693720,3.8570745,3447.6,3446.8,0.859]
[1718701694345,0.30068222,3447.5,3446.8,0.859]
[1718701695373,0.30068222,3447.5,3446.5,2.3979]
[1718701695553,0.30068222,3447.5,3446.8,0.859]
[1718701695847,0.57106216,3447.4,3446.8,0.859]
[1718701697672,2.3342,3447.3,3446.5,2.3979]
[1718701697834,5.3342,3447.3,3446.9,0.859]
[1718701700250,3.0,3447.3,3446.9,0.859]
[1718701700426,3.57106216,3447.4,3447.1,0.859]
[1718701700945,3.57106216,3447.4,3447.0,0.859]
[1718701702261,3.57106216,3447.4,3446.5,2.3979]
[1718701702466,3.57106216,3447.4,3446.9,0.859]
[1718701702767,0.62405444,3447.3,3446.9,0.859]
[1718701705736,0.62405444,3447.3,3447.2,0.859]
[1718701707671,0.62405444,3447.3,3446.5,2.3979]
[1718701707895,3.0,3447.4,3447.2,0.859]
[1718701710160,3.0,3447.7,3447.2,3.3027]
[1718701710377,0.50196379,3448.1,3447.6,0.859]
[1718701710550,2.3154,3448.5,3448.0,0.859]
[1718701710749,0.74517925,3448.5,3448.4,0.859]
[1718701710976,0.30065168,3448.5,3448.4,0.859]
[1718701717449,3.0,3449.1,3448.4,0.859]
[1718701717647,3.0,3449.1,3449.0,0.859]
[1718701718186,3.43196379,3449.2,3449.0,0.859]
[1718701718391,0.64837966,3449.7,3449.0,0.859]
[1718701718392,2.12987567,3449.6,3449.0,0.859]
[1718701718573,0.31639737,3449.6,3449.2,0.859]
[1718701718763,0.30047864,3449.5,3449.2,0.859]
[1718701720954,0.30047864,3449.5,3449.0,0.859]
[1718701721262,0.30047864,3449.5,3448.8,0.859]
[1718701721458,0.69731245,3449.4,3448.8,0.859]
[1718701722264,0.69731245,3449.4,3449.0,0.859]
[1718701723285,0.30047864,3449.5,3449.0,0.859]
[1718701725471,0.30047864,3449.5,3449.2,0.859]
[1718701725990,0.30047864,3449.5,3449.0,0.859]
[1718701739691,2.3237,3449.4,3447.5,2.3217]
[1718701739890,7.06806062,3449.4,3448.5,0.859]
[1718701740611,3.0,3449.3,3448.5,0.859]
[1718701740810,2.3807,3449.1,3448.1,2.3217]
[1718701741127,2.3807,3449.1,3448.3,0.859]
[1718701741425,3.52928179,3449.1,3448.3,0.859]
[1718701741590,3.30059793,3449.0,3448.3,0.859]
[1718701742724,3.30059793,3449.0,3448.1,2.3217]
[1718701743023,3.30059793,3449.0,3448.2,0.859]
[1718701744608,3.30059793,3449.0,3448.4,0.859]
[1718701747536,3.6336453,3449.0,3448.4,0.859]
[1718701751530,3.30059793,3449.0,3448.4,0.859]
[1718701751739,3.30059793,3449.0,3447.5,2.90065]
[1718701751740,3.30059793,3449.0,3448.8,0.859]
[1718701751904,3.50182795,3449.2,3448.8,0.859]
[1718701752099,3.50182795,3449.2,3449.0,0.859]
[1718701754943,3.18982795,3449.2,3449.0,0.859]
[1718701758335,2.1179298,3449.4,3449.0,1.17295]
[1718701758542,2.1179298,3449.4,3449.0,0.859]
[1718701758742,2.9769298,3449.4,3448.7,2.2805]
[1718701758908,3.0,3449.3,3448.7,2.2805]
[1718701759337,0.859,3449.2,3448.7,2.2805]
[1718701759845,3.859,3449.2,3448.7,2.2805]
[1718701760507,0.859,3449.0,3448.2,2.3765]
[1718701760706,0.859,3449.0,3448.3,0.32355]
[1718701762867,2.12945677,3449.4,3448.6,2.4448]
[1718701763013,5.12945677,3449.5,3448.7,1.18938]
[1718701763212,5.12945677,3449.5,3448.8,0.05798525]
[1718701765251,5.12945677,3449.5,3448.7,1.18938]
[1718701767070,5.12943635,3449.5,3448.7,1.18938]
[1718701768424,5.12943635,3449.5,3448.8,2.2602]
[1718701768760,5.12943635,3449.5,3448.9,0.344958]
[1718701769067,5.12943635,3449.5,3448.8,2.2602]
[1718701769235,0.859,3449.2,3448.2,0.859]
[1718701769765,2.98843635,3449.2,3448.2,0.859]
[1718701769924,0.859,3449.2,3448.2,0.859]
[1718701770122,0.859,3449.2,3448.3,0.31629]
[1718701770319,5.12944748,3449.3,3448.3,0.31629]
[1718701770625,0.859,3449.2,3448.4,2.3039]
[1718701774854,2.98844748,3449.2,3448.4,2.3039]
[1718701777129,5.12944748,3449.1,3448.4,2.3039]
[1718701778059,3.0,3449.1,3448.4,2.3039]
[1718701778271,3.0,3449.1,3448.5,0.31629]
[1718701778624,5.12944748,3449.1,3448.5,0.31629]
[1718701778846,3.0,3449.1,3448.5,0.31629]
[1718701780163,5.12944748,3449.1,3448.5,0.31629]
[1718701780363,3.0,3449.1,3448.5,0.31629]
[1718701780863,5.12944748,3449.1,3448.5,0.31629]
[1718701781173,3.0,3449.1,3448.5,0.31629]
[1718701781533,5.12944748,3449.1,3448.5,0.31629]
[1718701781735,5.12944748,3449.1,3447.6,2.4746]
[1718701781736,0.859,3448.6,3447.6,2.4746]